fUST/lending_fUST_20260519
["ID","MTS","AMOUNT","RATE_DAILY","PERIOD"]
[422587907,1779127839000,-813.93,8.219e-05,2]
[422587909,1779127839000,-500.0,8.219e-05,2]
[422587911,1779127839000,-1141.69,8.219e-05,2]
[422587913,1779127839000,-2548.95,8.219e-05,2]
[422587915,1779127839000,-205.62395201,8.219e-05,2]
[422587917,1779127839000,-1479.72,8.219e-05,2]
[422587919,1779127839000,-500.0,8.219e-05,2]
[422587927,1779127839000,-1123.724,8.493e-05,2]
[422587929,1779127839000,-500.0,8.493e-05,2]
[422587921,1779127839000,-500.0,8.219e-05,2]
[422587925,1779127839000,-5379.38020351,8.44e-05,2]
[422587931,1779127839000,-500.0,8.493e-05,2]
[422587933,1779127839000,-500.0,8.493e-05,2]
[422587935,1779127839000,-500.0,8.493e-05,2]
[422587937,1779127839000,-500.0,8.493e-05,2]
[422587947,1779127839000,-500.0,8.493e-05,2]
[422587941,1779127839000,-500.0,8.493e-05,2]
[422587939,1779127839000,-388.18316435,8.493e-05,2]
[422587951,1779127839000,-500.0,8.493e-05,2]
[422587949,1779127839000,-539.04,8.493e-05,2]
[422587943,1779127839000,-500.0,8.493e-05,2]
[422587945,1779127839000,-500.0,8.493e-05,2]
[422587824,1779127839000,-828.23,8.219e-05,2]
[422587903,1779127839000,-2613.31,8.219e-05,2]
[422587892,1779127839000,-501.41,8.219e-05,2]
[422587923,1779127839000,-229.99,8.309e-05,2]
[422587899,1779127839000,-500.0,8.219e-05,2]
[422587896,1779127839000,-500.0,8.219e-05,2]
[422587820,1779127839000,-942.51,8.219e-05,2]
[422587819,1779127839000,-1823.44,8.219e-05,2]
[422587832,1779127839000,-3102.15,8.219e-05,2]
[422587835,1779127839000,-500.0,8.219e-05,2]
[422587848,1779127839000,-500.0,8.219e-05,2]
[422587854,1779127839000,-500.0,8.219e-05,2]
[422587850,1779127839000,-3782.24,8.219e-05,2]
[422587836,1779127839000,-500.0,8.219e-05,2]
[422587852,1779127839000,-818.92,8.219e-05,2]
[422587844,1779127839000,-15705.19,8.219e-05,2]
[422587838,1779127839000,-500.0,8.219e-05,2]
[422587857,1779127839000,-1069.09,8.219e-05,2]
[422587840,1779127839000,-2203.58,8.219e-05,2]
[422587856,1779127839000,-1969.27,8.219e-05,2]
[422587817,1779127839000,-500.0,8.219e-05,2]
[422587846,1779127839000,-917.36,8.219e-05,2]
[422587842,1779127839000,-715.24,8.219e-05,2]
[422587870,1779127839000,-500.0,8.219e-05,2]
[422587868,1779127839000,-500.0,8.219e-05,2]
[422587872,1779127839000,-727.2,8.219e-05,2]
[422587876,1779127839000,-500.0,8.219e-05,2]
[422587882,1779127839000,-2568.42,8.219e-05,2]
[422587884,1779127839000,-1040.93,8.219e-05,2]
[422587880,1779127839000,-691.94,8.219e-05,2]
[422587878,1779127839000,-500.0,8.219e-05,2]
[422587861,1779127839000,-500.0,8.219e-05,2]
[422587859,1779127839000,-1430.11,8.219e-05,2]
[422587874,1779127839000,-1456.96,8.219e-05,2]
[422588040,1779127840000,-500.0,8.493e-05,2]
[422588028,1779127840000,-500.0,8.493e-05,2]
[422588020,1779127840000,-942.51,8.493e-05,2]
[422588019,1779127840000,-1823.44,8.493e-05,2]
[422588021,1779127840000,-765.54,8.493e-05,2]
[422588026,1779127840000,-3102.15,8.493e-05,2]
[422588016,1779127840000,-500.0,8.493e-05,2]
[422588022,1779127840000,-828.23,8.493e-05,2]
[422588017,1779127840000,-500.0,8.493e-05,2]
[422588025,1779127840000,-500.0,8.493e-05,2]
[422588027,1779127840000,-500.0,8.493e-05,2]
[422588024,1779127840000,-904.16,8.493e-05,2]
[422588018,1779127840000,-500.0,8.493e-05,2]
[422588029,1779127840000,-2203.58,8.493e-05,2]
[422588031,1779127840000,-15705.19,8.493e-05,2]
[422588038,1779127840000,-1069.09,8.493e-05,2]
[422588037,1779127840000,-1969.27,8.493e-05,2]
[422588033,1779127840000,-500.0,8.493e-05,2]
[422588032,1779127840000,-917.36,8.493e-05,2]
[422588035,1779127840000,-818.92,8.493e-05,2]
[422588030,1779127840000,-715.24,8.493e-05,2]
[422588034,1779127840000,-3782.24,8.493e-05,2]
[422588036,1779127840000,-500.0,8.493e-05,2]
[422588041,1779127840000,-500.0,8.493e-05,2]
[422588044,1779127840000,-1456.96,8.493e-05,2]
[422588050,1779127840000,-1040.93,8.493e-05,2]
[422588049,1779127840000,-2568.42,8.493e-05,2]
[422588045,1779127840000,-500.0,8.493e-05,2]
[422588023,1779127840000,-500.0,8.493e-05,2]
[422588039,1779127840000,-1430.11,8.493e-05,2]
[422588015,1779127840000,-500.0,8.493e-05,2]
[422587955,1779127840000,-500.0,8.493e-05,2]
[422588013,1779127840000,-1044.68,8.493e-05,2]
[422588043,1779127840000,-727.2,8.493e-05,2]
[422587957,1779127840000,-500.0,8.493e-05,2]
[422587953,1779127840000,-827.84,8.493e-05,2]
[422587959,1779127840000,-500.0,8.493e-05,2]
[422587961,1779127840000,-500.0,8.493e-05,2]
[422587963,1779127840000,-500.0,8.493e-05,2]
[422587965,1779127840000,-500.0,8.493e-05,2]
[422587967,1779127840000,-500.0,8.493e-05,2]
[422587971,1779127840000,-500.0,8.493e-05,2]
[422587969,1779127840000,-500.0,8.493e-05,2]
[422587974,1779127840000,-899.53,8.493e-05,2]
[422587978,1779127840000,-500.0,8.493e-05,2]
[422587976,1779127840000,-500.0,8.493e-05,2]
[422587982,1779127840000,-573.86817624,8.493e-05,2]
[422588011,1779127840000,-1002.27,8.493e-05,2]
[422587984,1779127840000,-500.0,8.493e-05,2]
[422587987,1779127840000,-572.91,8.493e-05,2]
[422587986,1779127840000,-500.0,8.493e-05,2]
[422588002,1779127840000,-534.46,8.493e-05,2]
[422588000,1779127840000,-529.02,8.493e-05,2]
[422587989,1779127840000,-500.0,8.493e-05,2]
[422588005,1779127840000,-500.0,8.493e-05,2]
[422587991,1779127840000,-500.0,8.493e-05,2]
[422587994,1779127840000,-500.0,8.493e-05,2]
[422588007,1779127840000,-1126.22,8.493e-05,2]
[422588004,1779127840000,-500.0,8.493e-05,2]
[422587995,1779127840000,-500.0,8.493e-05,2]
[422587997,1779127840000,-822.99,8.493e-05,2]
[422588009,1779127840000,-919.11,8.493e-05,2]
[422587999,1779127840000,-572.41727832,8.493e-05,2]
[422587980,1779127840000,-589.46,8.493e-05,2]
[422588046,1779127840000,-500.0,8.493e-05,2]
[422588089,1779127840000,-500.0,8.767e-05,2]
[422588048,1779127840000,-691.94,8.493e-05,2]
[422588096,1779127840000,-899.53,8.767e-05,2]
[422588084,1779127840000,-827.84,8.767e-05,2]
[422588085,1779127840000,-500.0,8.767e-05,2]
[422588097,1779127840000,-500.0,8.767e-05,2]
[422588095,1779127840000,-500.0,8.767e-05,2]
[422588088,1779127840000,-500.0,8.767e-05,2]
[422588087,1779127840000,-500.0,8.767e-05,2]
[422588086,1779127840000,-500.0,8.767e-05,2]
[422588090,1779127840000,-500.0,8.767e-05,2]
[422588092,1779127840000,-500.0,8.767e-05,2]
[422588099,1779127840000,-589.46,8.767e-05,2]
[422588101,1779127840000,-500.0,8.767e-05,2]
[422588103,1779127840000,-500.0,8.767e-05,2]
[422588109,1779127840000,-529.02,8.767e-05,2]
[422588098,1779127840000,-500.0,8.767e-05,2]
[422588102,1779127840000,-572.91,8.767e-05,2]
[422588111,1779127840000,-500.0,8.767e-05,2]
[422588104,1779127840000,-500.0,8.767e-05,2]
[422588106,1779127840000,-500.0,8.767e-05,2]
[422588100,1779127840000,-500.0,8.767e-05,2]
[422588112,1779127840000,-500.0,8.767e-05,2]
[422588105,1779127840000,-500.0,8.767e-05,2]
[422588110,1779127840000,-534.46,8.767e-05,2]
[422588113,1779127840000,-1126.22,8.767e-05,2]
[422588115,1779127840000,-1044.68,8.767e-05,2]
[422588114,1779127840000,-919.11,8.767e-05,2]
[422588118,1779127840000,-500.0,8.767e-05,2]
[422588051,1779127840000,-714.43,8.493e-05,2]
[422588117,1779127840000,-1002.27,8.767e-05,2]
[422588120,1779127840000,-500.0,8.767e-05,2]
[422588107,1779127840000,-822.99,8.767e-05,2]
[422588093,1779127840000,-500.0,8.767e-05,2]
[422588119,1779127840000,-500.0,8.767e-05,2]
[422588081,1779127840000,-539.04,8.767e-05,2]
[422588082,1779127840000,-500.0,8.767e-05,2]
[422588052,1779127840000,-1067.09,8.493e-05,2]
[422588054,1779127840000,-501.41,8.493e-05,2]
[422588042,1779127840000,-500.0,8.493e-05,2]
[422588056,1779127840000,-500.0,8.493e-05,2]
[422588055,1779127840000,-938.67,8.493e-05,2]
[422588061,1779127840000,-813.93,8.493e-05,2]
[422588064,1779127840000,-2548.95,8.493e-05,2]
[422588066,1779127840000,-1479.72,8.493e-05,2]
[422588060,1779127840000,-1051.8,8.493e-05,2]
[422588067,1779127840000,-500.0,8.493e-05,2]
[422588063,1779127840000,-1141.69,8.493e-05,2]
[422588059,1779127840000,-2613.31,8.493e-05,2]
[422588057,1779127840000,-500.0,8.493e-05,2]
[422588065,1779127840000,-500.0,8.493e-05,2]
[422588053,1779127840000,-500.0,8.493e-05,2]
[422588058,1779127840000,-500.0,8.493e-05,2]
[422588062,1779127840000,-500.0,8.493e-05,2]
[422588074,1779127840000,-498.48043151,8.767e-05,2]
[422588078,1779127840000,-500.0,8.767e-05,2]
[422588075,1779127840000,-500.0,8.767e-05,2]
[422588077,1779127840000,-389.46406793,8.767e-05,2]
[422588073,1779127840000,-500.0,8.767e-05,2]
[422588072,1779127840000,-500.0,8.767e-05,2]
[422588076,1779127840000,-500.0,8.767e-05,2]
[422588069,1779127840000,-1680.0,8.577e-05,2]
[422588070,1779127840000,-229.99,8.703e-05,2]
[422588079,1779127840000,-500.0,8.767e-05,2]
[422588071,1779127840000,-1123.724,8.767e-05,2]
[422588068,1779127840000,-420.0,8.577e-05,2]
[422588080,1779127840000,-500.0,8.767e-05,2]
[422588164,1779127841000,-813.93,8.767e-05,2]
[422588163,1779127841000,-1051.8,8.767e-05,2]
[422588160,1779127841000,-500.0,8.767e-05,2]
[422588157,1779127841000,-501.41,8.767e-05,2]
[422588159,1779127841000,-500.0,8.767e-05,2]
[422588167,1779127841000,-2548.95,8.767e-05,2]
[422588168,1779127841000,-500.0,8.767e-05,2]
[422588166,1779127841000,-1141.69,8.767e-05,2]
[422588156,1779127841000,-500.0,8.767e-05,2]
[422588162,1779127841000,-2613.31,8.767e-05,2]
[422588147,1779127841000,-727.2,8.767e-05,2]
[422588158,1779127841000,-938.67,8.767e-05,2]
[422588155,1779127841000,-1067.09,8.767e-05,2]
[422588169,1779127841000,-1479.72,8.767e-05,2]
[422588161,1779127841000,-500.0,8.767e-05,2]
[422588170,1779127841000,-165628.01156214,9e-05,2]
[422588179,1779127841000,-539.04,9.041e-05,2]
[422588178,1779127841000,-500.0,9.041e-05,2]
[422588177,1779127841000,-500.0,9.041e-05,2]
[422588176,1779127841000,-500.0,9.041e-05,2]
[422588181,1779127841000,-827.84,9.041e-05,2]
[422588174,1779127841000,-500.0,9.041e-05,2]
[422588180,1779127841000,-500.0,9.041e-05,2]
[422588172,1779127841000,-500.0,9.041e-05,2]
[422588171,1779127841000,-1123.724,9.041e-05,2]
[422588173,1779127841000,-500.0,9.041e-05,2]
[422588151,1779127841000,-691.94,8.767e-05,2]
[422588175,1779127841000,-500.0,9.041e-05,2]
[422588165,1779127841000,-500.0,8.767e-05,2]
[422588149,1779127841000,-500.0,8.767e-05,2]
[422588136,1779127841000,-500.0,8.767e-05,2]
[422588152,1779127841000,-2568.42,8.767e-05,2]
[422588182,1779127841000,-500.0,9.041e-05,2]
[422588125,1779127841000,-828.23,8.767e-05,2]
[422588127,1779127841000,-904.16,8.767e-05,2]
[422588123,1779127841000,-942.51,8.767e-05,2]
[422588124,1779127841000,-765.54,8.767e-05,2]
[422588126,1779127841000,-500.0,8.767e-05,2]
[422588121,1779127841000,-500.0,8.767e-05,2]
[422588122,1779127841000,-1823.44,8.767e-05,2]
[422588128,1779127841000,-500.0,8.767e-05,2]
[422588133,1779127841000,-715.24,8.767e-05,2]
[422588130,1779127841000,-500.0,8.767e-05,2]
[422588132,1779127841000,-2203.58,8.767e-05,2]
[422588131,1779127841000,-500.0,8.767e-05,2]
[422588150,1779127841000,-500.0,8.767e-05,2]
[422588129,1779127841000,-3102.15,8.767e-05,2]
[422588135,1779127841000,-917.36,8.767e-05,2]
[422588137,1779127841000,-3782.24,8.767e-05,2]
[422588142,1779127841000,-1069.09,8.767e-05,2]
[422588141,1779127841000,-1969.27,8.767e-05,2]
[422588138,1779127841000,-818.92,8.767e-05,2]
[422588140,1779127841000,-500.0,8.767e-05,2]
[422588144,1779127841000,-500.0,8.767e-05,2]
[422588154,1779127841000,-714.43,8.767e-05,2]
[422588143,1779127841000,-1430.11,8.767e-05,2]
[422588146,1779127841000,-500.0,8.767e-05,2]
[422588153,1779127841000,-1040.93,8.767e-05,2]
[422588145,1779127841000,-500.0,8.767e-05,2]
[422588148,1779127841000,-1456.96,8.767e-05,2]
[422588134,1779127841000,-15705.19,8.767e-05,2]
[422588183,1779127841000,-500.0,9.041e-05,2]
[422588229,1779127841000,-500.0,9.041e-05,2]
[422588186,1779127841000,-500.0,9.041e-05,2]
[422588218,1779127841000,-828.23,9.041e-05,2]
[422588221,1779127841000,-500.0,9.041e-05,2]
[422588223,1779127841000,-500.0,9.041e-05,2]
[422588224,1779127841000,-500.0,9.041e-05,2]
[422588220,1779127841000,-904.16,9.041e-05,2]
[422588219,1779127841000,-500.0,9.041e-05,2]
[422588226,1779127841000,-715.24,9.041e-05,2]
[422588222,1779127841000,-3102.15,9.041e-05,2]
[422588227,1779127841000,-15705.19,9.041e-05,2]
[422588225,1779127841000,-2203.58,9.041e-05,2]
[422588245,1779127841000,-1040.93,9.041e-05,2]
[422588228,1779127841000,-917.36,9.041e-05,2]
[422588241,1779127841000,-500.0,9.041e-05,2]
[422588217,1779127841000,-765.54,9.041e-05,2]
[422588242,1779127841000,-500.0,9.041e-05,2]
[422588232,1779127841000,-500.0,9.041e-05,2]
[422588233,1779127841000,-1969.27,9.041e-05,2]
[422588234,1779127841000,-1069.09,9.041e-05,2]
[422588235,1779127841000,-1430.11,9.041e-05,2]
[422588239,1779127841000,-727.2,9.041e-05,2]
[422588237,1779127841000,-500.0,9.041e-05,2]
[422588236,1779127841000,-500.0,9.041e-05,2]
[422588238,1779127841000,-611.10342227,9.041e-05,2]
[422588240,1779127841000,-1456.96,9.041e-05,2]
[422588244,1779127841000,-2568.42,9.041e-05,2]
[422588243,1779127841000,-691.94,9.041e-05,2]
[422588246,1779127841000,-714.43,9.041e-05,2]
[422588184,1779127841000,-500.0,9.041e-05,2]
[422588230,1779127841000,-3782.24,9.041e-05,2]
[422588205,1779127841000,-500.0,9.041e-05,2]
[422588231,1779127841000,-818.92,9.041e-05,2]
[422588212,1779127841000,-500.0,9.041e-05,2]
[422588208,1779127841000,-919.11,9.041e-05,2]
[422588187,1779127841000,-500.0,9.041e-05,2]
[422588188,1779127841000,-500.0,9.041e-05,2]
[422588189,1779127841000,-500.0,9.041e-05,2]
[422588199,1779127841000,-500.0,9.041e-05,2]
[422588190,1779127841000,-500.0,9.041e-05,2]
[422588192,1779127841000,-500.0,9.041e-05,2]
[422588201,1779127841000,-500.0,9.041e-05,2]
[422588202,1779127841000,-822.99,9.041e-05,2]
[422588193,1779127841000,-500.0,9.041e-05,2]
[422588196,1779127841000,-500.0,9.041e-05,2]
[422588200,1779127841000,-500.0,9.041e-05,2]
[422588194,1779127841000,-589.46,9.041e-05,2]
[422588198,1779127841000,-547.3012262,9.041e-05,2]
[422588185,1779127841000,-500.0,9.041e-05,2]
[422588195,1779127841000,-500.0,9.041e-05,2]
[422588191,1779127841000,-899.53,9.041e-05,2]
[422588215,1779127841000,-1823.44,9.041e-05,2]
[422588214,1779127841000,-500.0,9.041e-05,2]
[422588206,1779127841000,-500.0,9.041e-05,2]
[422588211,1779127841000,-500.0,9.041e-05,2]
[422588213,1779127841000,-500.0,9.041e-05,2]
[422588203,1779127841000,-529.02,9.041e-05,2]
[422588207,1779127841000,-1126.22,9.041e-05,2]
[422588209,1779127841000,-1044.68,9.041e-05,2]
[422588210,1779127841000,-1002.27,9.041e-05,2]
[422588204,1779127841000,-534.46,9.041e-05,2]
[422588197,1779127841000,-572.91,9.041e-05,2]
[422588216,1779127841000,-942.51,9.041e-05,2]
[422588290,1779127842000,-500.0,9.315e-05,2]
[422588293,1779127842000,-500.0,9.315e-05,2]
[422588291,1779127842000,-589.46,9.315e-05,2]
[422588272,1779127842000,-500.0,9.315e-05,2]
[422588285,1779127842000,-500.0,9.315e-05,2]
[422588283,1779127842000,-500.0,9.315e-05,2]
[422588294,1779127842000,-572.91,9.315e-05,2]
[422588284,1779127842000,-500.0,9.315e-05,2]
[422588278,1779127842000,-827.84,9.315e-05,2]
[422588276,1779127842000,-539.04,9.315e-05,2]
[422588288,1779127842000,-899.53,9.315e-05,2]
[422588295,1779127842000,-500.0,9.315e-05,2]
[422588286,1779127842000,-500.0,9.315e-05,2]
[422588296,1779127842000,-500.0,9.315e-05,2]
[422588289,1779127842000,-500.0,9.315e-05,2]
[422588292,1779127842000,-500.0,9.315e-05,2]
[422588297,1779127842000,-500.0,9.315e-05,2]
[422588298,1779127842000,-822.99,9.315e-05,2]
[422588304,1779127842000,-919.11,9.315e-05,2]
[422588301,1779127842000,-500.0,9.315e-05,2]
[422588303,1779127842000,-1126.22,9.315e-05,2]
[422588299,1779127842000,-529.02,9.315e-05,2]
[422588300,1779127842000,-534.46,9.315e-05,2]
[422588305,1779127842000,-1044.68,9.315e-05,2]
[422588302,1779127842000,-500.0,9.315e-05,2]
[422588307,1779127842000,-500.0,9.315e-05,2]
[422588280,1779127842000,-252.26647719,9.315e-05,2]
[422588287,1779127842000,-500.0,9.315e-05,2]
[422588277,1779127842000,-500.0,9.315e-05,2]
[422588254,1779127842000,-2613.31,9.041e-05,2]
[422588273,1779127842000,-500.0,9.315e-05,2]
[422588309,1779127842000,-235.13428888,9.315e-05,2]
[422588255,1779127842000,-1051.8,9.041e-05,2]
[422588247,1779127842000,-1067.09,9.041e-05,2]
[422588248,1779127842000,-500.0,9.041e-05,2]
[422588249,1779127842000,-501.41,9.041e-05,2]
[422588253,1779127842000,-445.43,9.041e-05,2]
[422588252,1779127842000,-500.0,9.041e-05,2]
[422588251,1779127842000,-500.0,9.041e-05,2]
[422588250,1779127842000,-938.67,9.041e-05,2]
[422588267,1779127842000,-5812.21551757,9.208e-05,2]
[422588257,1779127842000,-500.0,9.041e-05,2]
[422588269,1779127842000,-500.0,9.315e-05,2]
[422588260,1779127842000,-500.0,9.041e-05,2]
[422588268,1779127842000,-1123.724,9.315e-05,2]
[422588256,1779127842000,-813.93,9.041e-05,2]
[422588261,1779127842000,-1479.72,9.041e-05,2]
[422588258,1779127842000,-1141.69,9.041e-05,2]
[422588266,1779127842000,-173.492,9.178e-05,2]
[422588259,1779127842000,-2548.95,9.041e-05,2]
[422588265,1779127842000,-647.0,9.055e-05,2]
[422588262,1779127842000,-268.388,9.055e-05,2]
[422588263,1779127842000,-1413.0,9.055e-05,2]
[422588264,1779127842000,-2202.0,9.055e-05,2]
[422588271,1779127842000,-500.0,9.315e-05,2]
[422588281,1779127842000,-500.0,9.315e-05,2]
[422588282,1779127842000,-281.02786119,9.315e-05,2]
[422588270,1779127842000,-500.0,9.315e-05,2]
[422588279,1779127842000,-500.0,9.315e-05,2]
[422588275,1779127842000,-500.0,9.315e-05,2]
[422588274,1779127842000,-500.0,9.315e-05,2]
[422588308,1779127842000,-500.0,9.315e-05,2]
[422588317,1779127842000,-500.0,9.315e-05,2]
[422588310,1779127842000,-500.0,9.315e-05,2]
[422588356,1779127842000,-162.380719,9.337e-05,2]
[422588346,1779127842000,-500.0,9.315e-05,2]
[422588347,1779127842000,-500.0,9.315e-05,2]
[422588345,1779127842000,-938.67,9.315e-05,2]
[422588357,1779127842000,-537.6845,9.337e-05,2]
[422588351,1779127842000,-211.8682091,9.315e-05,2]
[422588350,1779127842000,-813.93,9.315e-05,2]
[422588352,1779127842000,-1141.69,9.315e-05,2]
[422588354,1779127842000,-500.0,9.315e-05,2]
[422588348,1779127842000,-2613.31,9.315e-05,2]
[422588349,1779127842000,-1051.8,9.315e-05,2]
[422588353,1779127842000,-2548.95,9.315e-05,2]
[422588355,1779127842000,-1479.72,9.315e-05,2]
[422588363,1779127842000,-2338.0,9.434e-05,2]
[422588362,1779127842000,-587.0,9.434e-05,2]
[422588360,1779127842000,-557.5788265,9.392e-05,2]
[422588366,1779127842000,-621.78829552,9.557e-05,2]
[422588359,1779127842000,-160.0,9.371e-05,2]
[422588367,1779127842000,-1123.724,9.589e-05,2]
[422588369,1779127842000,-500.0,9.589e-05,2]
[422588361,1779127842000,-154.70872464,9.401e-05,2]
[422588364,1779127842000,-578.20924308,9.447e-05,2]
[422588365,1779127842000,-599.60298507,9.502e-05,2]
[422588370,1779127842000,-500.0,9.589e-05,2]
[422588368,1779127842000,-500.0,9.589e-05,2]
[422588372,1779127842000,-151.0,9.589e-05,2]
[422588373,1779127842000,-500.0,9.589e-05,2]
[422588371,1779127842000,-500.0,9.589e-05,2]
[422588306,1779127842000,-1002.27,9.315e-05,2]
[422588337,1779127842000,-500.0,9.315e-05,2]
[422588339,1779127842000,-2568.42,9.315e-05,2]
[422588358,1779127842000,-161.68513202,9.371e-05,2]
[422588344,1779127842000,-501.41,9.315e-05,2]
[422588315,1779127842000,-500.0,9.315e-05,2]
[422588338,1779127842000,-691.94,9.315e-05,2]
[422588311,1779127842000,-1823.44,9.315e-05,2]
[422588312,1779127842000,-942.51,9.315e-05,2]
[422588314,1779127842000,-828.23,9.315e-05,2]
[422588316,1779127842000,-904.16,9.315e-05,2]
[422588313,1779127842000,-765.54,9.315e-05,2]
[422588319,1779127842000,-500.0,9.315e-05,2]
[422588329,1779127842000,-1969.27,9.315e-05,2]
[422588326,1779127842000,-3782.24,9.315e-05,2]
[422588321,1779127842000,-2203.58,9.315e-05,2]
[422588331,1779127842000,-1430.11,9.315e-05,2]
[422588328,1779127842000,-500.0,9.315e-05,2]
[422588330,1779127842000,-1069.09,9.315e-05,2]
[422588327,1779127842000,-818.92,9.315e-05,2]
[422588318,1779127842000,-3102.15,9.315e-05,2]
[422588336,1779127842000,-500.0,9.315e-05,2]
[422588340,1779127842000,-1040.93,9.315e-05,2]
[422588320,1779127842000,-500.0,9.315e-05,2]
[422588335,1779127842000,-1456.96,9.315e-05,2]
[422588333,1779127842000,-500.0,9.315e-05,2]
[422588342,1779127842000,-1067.09,9.315e-05,2]
[422588343,1779127842000,-500.0,9.315e-05,2]
[422588341,1779127842000,-714.43,9.315e-05,2]
[422588332,1779127842000,-500.0,9.315e-05,2]
[422588324,1779127842000,-917.36,9.315e-05,2]
[422588323,1779127842000,-15705.19,9.315e-05,2]
[422588322,1779127842000,-715.24,9.315e-05,2]
[422588325,1779127842000,-500.0,9.315e-05,2]
[422588334,1779127842000,-727.2,9.315e-05,2]
[422588419,1779127843000,-2203.58,9.589e-05,2]
[422588430,1779127843000,-818.92,9.589e-05,2]
[422588428,1779127843000,-917.36,9.589e-05,2]
[422588425,1779127843000,-15705.19,9.589e-05,2]
[422588421,1779127843000,-715.24,9.589e-05,2]
[422588417,1779127843000,-500.0,9.589e-05,2]
[422588407,1779127843000,-500.0,9.589e-05,2]
[422588415,1779127843000,-3102.15,9.589e-05,2]
[422588414,1779127843000,-500.0,9.589e-05,2]
[422588413,1779127843000,-904.16,9.589e-05,2]
[422588412,1779127843000,-500.0,9.589e-05,2]
[422588405,1779127843000,-500.0,9.589e-05,2]
[422588429,1779127843000,-500.0,9.589e-05,2]
[422588416,1779127843000,-500.0,9.589e-05,2]
[422588431,1779127843000,-3782.24,9.589e-05,2]
[422588447,1779127843000,-714.43,9.589e-05,2]
[422588440,1779127843000,-727.2,9.589e-05,2]
[422588441,1779127843000,-1456.96,9.589e-05,2]
[422588432,1779127843000,-500.0,9.589e-05,2]
[422588443,1779127843000,-500.0,9.589e-05,2]
[422588445,1779127843000,-2568.42,9.589e-05,2]
[422588437,1779127843000,-1430.11,9.589e-05,2]
[422588442,1779127843000,-500.0,9.589e-05,2]
[422588435,1779127843000,-1069.09,9.589e-05,2]
[422588439,1779127843000,-500.0,9.589e-05,2]
[422588444,1779127843000,-691.94,9.589e-05,2]
[422588438,1779127843000,-500.0,9.589e-05,2]
[422588446,1779127843000,-1040.93,9.589e-05,2]
[422588448,1779127843000,-1067.09,9.589e-05,2]
[422588406,1779127843000,-500.0,9.589e-05,2]
[422588433,1779127843000,-1969.27,9.589e-05,2]
[422588402,1779127843000,-919.11,9.589e-05,2]
[422588383,1779127843000,-500.0,9.589e-05,2]
[422588404,1779127843000,-1002.27,9.589e-05,2]
[422588451,1779127843000,-938.67,9.589e-05,2]
[422588382,1779127843000,-500.0,9.589e-05,2]
[422588384,1779127843000,-500.0,9.589e-05,2]
[422588375,1779127843000,-500.0,9.589e-05,2]
[422588376,1779127843000,-539.04,9.589e-05,2]
[422588378,1779127843000,-827.84,9.589e-05,2]
[422588374,1779127843000,-500.0,9.589e-05,2]
[422588377,1779127843000,-500.0,9.589e-05,2]
[422588380,1779127843000,-500.0,9.589e-05,2]
[422588379,1779127843000,-500.0,9.589e-05,2]
[422588381,1779127843000,-500.0,9.589e-05,2]
[422588385,1779127843000,-500.0,9.589e-05,2]
[422588387,1779127843000,-500.0,9.589e-05,2]
[422588388,1779127843000,-500.0,9.589e-05,2]
[422588394,1779127843000,-500.0,9.589e-05,2]
[422588386,1779127843000,-899.53,9.589e-05,2]
[422588393,1779127843000,-500.0,9.589e-05,2]
[422588411,1779127843000,-828.23,9.589e-05,2]
[422588398,1779127843000,-534.46,9.589e-05,2]
[422588401,1779127843000,-1126.22,9.589e-05,2]
[422588400,1779127843000,-500.0,9.589e-05,2]
[422588410,1779127843000,-765.54,9.589e-05,2]
[422588409,1779127843000,-942.51,9.589e-05,2]
[422588403,1779127843000,-1044.68,9.589e-05,2]
[422588408,1779127843000,-1823.44,9.589e-05,2]
[422588390,1779127843000,-500.0,9.589e-05,2]